bitfinex-derivatives/quotes_ETHF0:USTF0_20250314
["timestamp","ask_amount","ask_price","bid_price","bid_amount"]
[1741917394390,5.86246,1883.9,1883.1,3.2078]
[1741917394391,1.4292,1883.5,1883.1,3.2078]
[1741917394598,2.49129,1883.5,1883.4,3.2078]
[1741917394787,1.4292,1883.5,1883.4,3.2078]
[1741917394997,1.06202,1883.6,1883.4,4.26987]
[1741917395196,1.06198,1883.6,1883.5,1.3526]
[1741917395800,1.78288,1883.6,1883.5,1.3526]
[1741917396900,1.06204,1883.5,1883.4,3.2078]
[1741917397092,1.76474,1883.5,1883.4,3.2078]
[1741917409711,1.76474,1883.5,1883.4,3.2078]
[1741917410102,3.20564,1883.5,1883.4,3.2078]
[1741917414109,1.06226,1883.1,1883.0,3.2078]
[1741917414908,3.16546,1883.1,1883.0,3.2078]
[1741917415508,2.1032,1883.1,1882.8,4.517]
[1741917415714,2.49406,1883.0,1882.8,4.517]
[1741917416018,1.06236,1883.0,1882.9,1.3528]
[1741917417214,1.06236,1883.0,1882.9,4.5606]
[1741917417816,1.06236,1883.0,1882.9,3.2078]
[1741917420624,1.06243,1882.8,1882.7,3.21576601]
[1741917420809,1.06243,1882.8,1882.7,0.00796601]
[1741917421017,1.0626,1882.5,1882.4,3.2078]
[1741917423618,1.0626,1882.5,1882.4,3.9005]
[1741917424121,1.0626,1882.5,1882.4,5.2466]
[1741917424517,0.00796601,1882.6,1882.4,5.2466]
[1741917424719,1.07052601,1882.6,1882.5,2.0833]
[1741917426425,1.0626,1882.5,1882.4,3.9005]
[1741917426628,1.0626,1882.5,1882.4,3.2078]
[1741917428125,1.0626,1882.5,1882.4,4.5918]
[1741917429524,1.0626,1882.5,1882.4,1.384]
[1741917429722,1.0626,1882.5,1882.4,4.5918]
[1741917430222,2.3778,1882.5,1882.4,4.5918]
[1741917431530,0.00796601,1882.6,1882.4,5.65446]
[1741917431717,2.43044601,1882.6,1882.5,2.0559]
[1741917431920,2.43044601,1882.6,1882.5,3.1185]
[1741917431921,0.00796601,1882.6,1882.5,3.1185]
[1741917432832,1.3495,1883.2,1882.5,15.07790324]
[1741917433131,1.06234,1883.0,1882.9,3.2078]
[1741917433718,1.06234,1883.0,1882.9,5.58458]
[1741917434119,0.00796601,1883.1,1883.0,1.06232]
[1741917434343,0.00796601,1883.1,1883.0,2.37672]
[1741917434827,1.4026,1883.5,1883.0,2.96827053]
[1741917435029,1.0621,1883.4,1883.3,3.2078]
[1741917436220,1.0621,1883.4,1883.3,4.5222]
[1741917436427,1.0621,1883.4,1883.3,3.2078]
[1741917436635,1.06221,1883.2,1883.1,5.2341]
[1741917439533,1.06221,1883.2,1883.1,4.5222]
[1741917439734,2.43061,1883.2,1883.1,4.5222]
[1741917442132,2.43061,1883.2,1883.1,3.2078]
[1741917442333,1.06232,1883.0,1882.9,3.2078]
[1741917442538,3.763,1883.1,1882.7,3.8749]
[1741917442728,1.06243,1882.8,1882.7,5.2922]
[1741917443041,1.06243,1882.8,1882.7,4.6251]
[1741917443833,1.06243,1882.8,1882.7,3.2078]
[1741917444235,3.45043,1882.8,1882.7,3.2078]
[1741917446337,2.388,1882.8,1882.5,4.5403]
[1741917446542,1.06255,1882.6,1882.5,4.5403]
[1741917447135,1.06255,1882.6,1882.5,3.2078]
[1741917448740,1.06266,1882.4,1882.3,3.21576601]
[1741917449827,1.06266,1882.4,1882.3,0.00796601]
[1741917450037,1.06266,1882.4,1882.3,3.21576601]
[1741917450532,1.06266,1882.4,1882.3,0.00796601]
[1741917451738,0.70066601,1882.5,1882.3,0.00796601]
[1741917451939,0.70066601,1882.5,1882.3,3.21576601]
[1741917452237,1.06266,1882.4,1882.3,4.60646601]
[1741917454639,1.06266,1882.4,1882.3,3.21576601]
[1741917460241,2.41826,1882.4,1882.3,3.21576601]
[1741917466742,2.41826,1882.4,1882.3,0.00796601]
[1741917468846,1.06277,1882.2,1882.1,3.2078]
[1741917469245,1.06289,1882.0,1881.9,4.6354]
[1741917469445,1.06289,1882.0,1881.9,3.2078]
[1741917469947,1.06305,1881.8,1881.7,3.2078]
[1741917470540,1.06305,1881.8,1881.7,4.624]
[1741917471150,1.06305,1881.8,1881.7,5.3417]
[1741917471845,1.4097,1881.9,1881.6,0.00796601]
[1741917471846,1.06306,1881.7,1881.6,0.00796601]
[1741917472037,3.14996,1881.7,1881.6,0.00796601]
[1741917472243,5.53796,1881.7,1881.6,0.00796601]
[1741917473253,8.03796,1881.7,1881.6,6.01e-06]
[1741917473549,5.53796,1881.7,1881.6,6.01e-06]
[1741917473750,6.24566,1881.7,1881.6,6.01e-06]
[1741917474457,8.74566,1881.7,1881.6,6.01e-06]
[1741917474953,6.24566,1881.7,1881.6,6.01e-06]
[1741917476448,6.24566,1881.7,1881.6,1.31520601]
[1741917476756,6.24566,1881.7,1881.6,6.01e-06]
[1741917477763,6.24566,1881.7,1881.6,1.38820601]
[1741917477953,6.24566,1881.7,1881.6,6.01e-06]
[1741917479063,6.24566,1881.7,1881.6,1.38820601]
[1741917479562,6.24566,1881.7,1881.6,6.01e-06]
[1741917483061,6.24566,1881.7,1881.6,1.37790601]
[1741917483355,9.45346,1881.7,1881.6,6.01e-06]
[1741917483753,11.95346,1881.7,1881.6,6.01e-06]
[1741917485265,12.04359249,1881.7,1881.6,6.01e-06]
[1741917485756,12.46180772,1881.7,1881.6,6.01e-06]
[1741917487365,18.41781657,1881.7,1881.6,6.01e-06]
[1741917490566,18.41781589,1881.7,1881.6,6.01e-06]
[1741917492366,18.41781642,1881.7,1881.6,6.01e-06]
[1741917492757,18.32767523,1881.7,1881.6,6.01e-06]
[1741917493767,18.4178176,1881.7,1881.6,6.01e-06]
[1741917494272,17.91046,1881.7,1881.6,6.01e-06]
[1741917494472,18.0005915,1881.7,1881.6,6.01e-06]
[1741917494968,15.5005915,1881.7,1881.6,6.01e-06]
[1741917495370,15.91541207,1881.7,1881.6,6.01e-06]
[1741917495873,15.5005915,1881.7,1881.6,6.01e-06]
[1741917496474,9.45446,1881.7,1881.6,6.01e-06]
[1741917498472,7.06546,1881.7,1881.6,6.01e-06]
[1741917498774,8.74676,1881.7,1881.6,6.01e-06]
[1741917502470,5.68056,1881.7,1881.6,6.01e-06]
[1741917502676,8.06956,1881.7,1881.6,6.01e-06]
[1741917503568,5.68056,1881.7,1881.6,6.01e-06]
[1741917503768,8.06956,1881.7,1881.6,6.01e-06]
[1741917504978,6.65986,1881.7,1881.6,6.01e-06]
[1741917505381,3.45206,1881.7,1881.6,6.01e-06]
[1741917505680,5.956,1882.3,1881.6,5.70780601]
[1741917505873,1.06289,1882.0,1881.9,3.2078]
[1741917506276,2.389,1882.3,1881.9,3.2078]
[1741917506482,1.06277,1882.2,1882.1,3.2078]
[1741917506674,1.06277,1882.3,1882.2,0.6679]
[1741917506879,1.06277,1882.3,1882.2,2.0975]
[1741917515487,1.06277,1882.3,1882.2,5.3053]
[1741917520695,2.37577,1882.3,1882.2,5.3053]
[1741917523699,0.00796601,1882.5,1882.2,5.3053]
[1741917523896,2.37856,1882.4,1882.3,4.5678]
[1741917536506,2.37856,1882.4,1882.3,5.16405253]
[1741917536905,2.37856,1882.4,1882.3,5.64847626]
[1741917537108,2.37856,1882.4,1882.3,5.64845821]
[1741917538306,2.37856,1882.4,1882.3,4.5678]
[1741917539813,2.37856,1882.4,1882.3,5.64820368]
[1741917540402,2.37856,1882.4,1882.3,4.5678]
[1741917541513,2.37856,1882.4,1882.3,5.1640748]
[1741917542317,2.37856,1882.4,1882.3,5.64846613]
[1741917542517,2.37856,1882.4,1882.3,5.16406381]
[1741917542820,3.05316,1882.4,1882.3,5.1640923]
[1741917543112,3.05316,1882.4,1882.3,4.5678]
[1741917543311,3.74646,1882.4,1882.3,3.2078]
[1741917543517,1.06277,1882.2,1882.1,3.2078]
[1741917544118,2.49147,1882.2,1882.1,3.2078]
[1741917545818,1.4287,1882.2,1881.9,13.6387]
[1741917546013,2.1253,1882.1,1881.9,3.2078]
[1741917546214,1.06294,1881.9,1881.8,3.2078]
[1741917546709,1.06306,1881.7,1881.6,27.06080601]
[1741917546909,1.06306,1881.7,1881.6,3.80452819]
[1741917547108,1.06306,1881.7,1881.6,3.80451145]
[1741917547319,1.06306,1881.7,1881.6,3.20780601]
[1741917547320,2.38706,1881.7,1881.6,3.20780601]
[1741917547616,2.38706,1881.7,1881.6,4.55850601]
[1741917548012,1.324,1881.7,1881.6,4.55850601]
[1741917548314,3.0713,1882.0,1881.7,1.06302]
[1741917548621,2.38696,1881.9,1881.8,1.3507]
[1741917548819,2.38696,1881.9,1881.8,5.8722]
[1741917550918,2.38696,1881.9,1881.8,6.46775203]
[1741917551314,2.38696,1881.9,1881.8,6.46770094]
[1741917551623,2.38696,1881.9,1881.8,5.8722]
[1741917552213,1.324,1881.9,1881.8,6.9352]
[1741917552414,2.38694,1881.9,1881.8,5.8722]
[1741917553014,2.38694,1881.9,1881.8,6.9352]
[1741917553309,2.38694,1881.9,1881.8,5.8722]
[1741917554122,3.10344,1881.9,1881.8,5.211]
[1741917555021,3.10344,1881.9,1881.8,4.5585]
[1741917555423,3.10344,1881.9,1881.8,3.2078]
[1741917557526,1.06306,1881.7,1881.6,3.20780601]
[1741917557716,1.06306,1881.7,1881.6,4.61030601]
[1741917558628,1.3019,1881.8,1881.7,1.06306]
[1741917558825,1.3019,1881.8,1881.7,2.99342797]
[1741917559129,1.3019,1881.8,1881.7,3.47702798]
[1741917559429,1.06297,1881.9,1881.7,3.47702798]
[1741917559430,0.6853,1882.0,1881.7,2.41396798]
[1741917559724,2.386,1882.4,1881.9,3.2078]
[1741917559928,1.0628,1882.2,1882.1,3.2078]
[1741917560123,1.3086,1882.3,1882.1,6.89169797]
[1741917560330,2.37134,1882.3,1882.2,2.0103]
[1741917563618,2.37134,1882.3,1882.2,3.07307]
[1741917564130,1.3086,1882.3,1882.2,3.07307]
[1741917564520,2.37132,1882.3,1882.2,3.07307]
[1741917565725,2.37132,1882.3,1882.2,2.0103]
[1741917567623,2.37132,1882.3,1882.2,1.3351]
[1741917568435,1.3086,1882.3,1882.2,2.39787]
[1741917568628,2.37132,1882.3,1882.2,2.39787]
[1741917568933,1.3086,1882.3,1882.2,2.39787]
[1741917569434,2.37132,1882.3,1882.2,2.39787]
[1741917569826,2.37132,1882.3,1882.2,1.3351]
[1741917570628,1.3086,1882.3,1882.1,3.8985]
[1741917570827,0.6843,1882.4,1882.2,2.39487]
[1741917571028,1.74699,1882.4,1882.3,5.60262]
[1741917571225,0.00796601,1882.5,1882.3,4.5399]
[1741917571425,8.61194,1883.0,1882.6,1.06253]
[1741917571426,2.46428,1882.8,1882.6,1.06253]
[1741917571637,2.46428,1882.8,1882.7,1.3321]
[1741917572724,1.06249,1882.7,1882.6,3.21576601]
[1741917573022,1.06249,1882.7,1882.6,4.54786601]
[1741917573420,1.06249,1882.7,1882.6,5.61041601]
[1741917573620,1.06249,1882.7,1882.6,4.54786601]
[1741917574928,1.06249,1882.7,1882.6,3.21576601]
[1741917575123,1.06249,1882.7,1882.6,0.00796601]
[1741917575323,3.44649,1882.7,1882.6,0.00796601]
[1741917575528,1.0626,1882.5,1882.4,3.2078]
[1741917582338,1.06266,1882.4,1882.3,0.00796601]
[1741917582638,3.44666,1882.4,1882.3,0.00796601]
[1741917582837,3.44666,1882.4,1881.2,5.31669]
[1741917582838,2.384,1882.4,1882.0,3.2078]
[1741917583027,1.06283,1882.1,1882.0,3.2078]
[1741917584534,3.44683,1882.1,1882.0,3.2078]
[1741917585839,2.384,1882.1,1881.8,4.6051]
[1741917586042,1.06294,1881.9,1881.8,3.2078]
[1741917586442,3.0749,1882.1,1881.8,3.2078]
[1741917586443,1.06292,1882.0,1881.8,3.2078]
[1741917586739,1.06292,1882.0,1881.9,2.0344]
[1741917586944,3.0749,1882.1,1881.9,2.7222]
[1741917587136,1.06289,1882.0,1881.9,1.3581]
[1741917587332,1.06289,1882.0,1881.9,5.64686872]
[1741917587529,1.06289,1882.0,1881.9,5.16233452]
[1741917587732,1.06289,1882.0,1881.9,5.64685981]
[1741917588138,1.06289,1882.0,1881.9,5.16233452]
[1741917588335,1.06289,1882.0,1881.9,5.64704352]
[1741917588940,1.06289,1882.0,1881.9,3.2078]
[1741917590044,2.43309,1882.0,1881.9,3.2078]
[1741917590541,3.2078,1883.0,1881.9,16.13031769]
[1741917590742,2.43286,1882.4,1882.3,3.2078]
[1741917594844,1.3702,1882.4,1882.3,3.2078]
[1741917595540,1.3702,1882.4,1882.3,4.6007]
[1741917595948,1.3702,1882.4,1882.3,5.66342]
[1741917596153,1.3702,1882.4,1882.3,6.25930183]
[1741917596540,1.4174,1882.7,1882.3,5.19658183]
[1741917596849,2.48735,1882.6,1882.5,3.2078]
[1741917597442,1.4248,1882.6,1882.3,4.6007]
[1741917597649,1.4248,1882.6,1882.3,3.2078]
[1741917597650,1.06266,1882.4,1882.3,3.2078]
[1741917598250,2.39216,1882.4,1882.3,3.2078]
[1741917598451,3.71606,1882.4,1882.3,3.2078]
[1741917604461,2.38656,1882.4,1882.3,3.2078]
[1741917605059,1.3424,1882.7,1882.3,3.2078]
[1741917605260,3.44549,1882.7,1882.6,3.2078]
[1741917605460,4.77489,1882.7,1882.6,3.2078]
[1741917607456,6.36867,1882.7,1882.4,3.2078]
[1741917607659,6.36867,1882.7,1882.2,5.9876]
[1741917607660,1.06272,1882.3,1882.2,5.9876]
[1741917608854,1.06272,1882.3,1882.2,7.06641767]
[1741917609258,1.06272,1882.3,1882.2,5.9876]
[1741917610062,1.06272,1882.3,1882.2,6.58312378]
[1741917610760,1.06272,1882.3,1882.2,7.06645586]
[1741917612461,1.06272,1882.3,1882.2,7.06632146]
[1741917612653,1.73202,1882.3,1882.2,4.5608]
[1741917612859,1.73202,1882.3,1882.2,3.2078]
[1741917613262,3.09762,1882.3,1882.2,3.2078]
[1741917614259,2.42832,1882.3,1882.2,3.2078]
[1741917615369,2.42832,1882.3,1882.2,5.14828006]
[1741917615565,2.42832,1882.3,1882.2,4.5525]
[1741917616564,2.42832,1882.3,1882.2,3.2078]
[1741917617773,2.42832,1882.3,1882.2,3.80373629]
[1741917617969,2.42832,1882.3,1882.2,4.28747601]
[1741917618175,2.42832,1882.3,1882.2,4.5745]
[1741917618872,2.42832,1882.3,1882.2,5.65431125]
[1741917619867,1.3656,1882.3,1882.2,5.65431125]
[1741917620175,1.06272,1882.3,1882.2,7.67049676]
[1741917620374,2.41368,1882.4,1882.3,1.06272]
[1741917620564,1.06263,1882.5,1882.3,4.03313945]
[1741917620769,3.1014,1882.7,1882.4,6.32176532]
[1741917620974,2.41355,1882.6,1882.5,2.42011899]
[1741917621170,2.41355,1882.6,1882.5,5.62791899]
[1741917621367,1.351,1882.6,1882.5,7.64372107]
[1741917621576,0.00796601,1882.9,1882.5,6.58112107]
[1741917621873,2.42136601,1882.9,1882.8,3.2078]
[1741917622779,2.42136601,1882.9,1882.8,4.45355914]
[1741917623071,0.00796601,1882.9,1882.8,6.95089031]
[1741917623466,0.00796601,1882.9,1882.8,5.99899449]
[1741917623771,0.00796601,1882.9,1882.8,6.95004072]
[1741917623972,1.06228,1883.1,1882.9,1.06235]
[1741917624172,1.06228,1883.1,1883.0,5.64256449]
[1741917624364,1.06228,1883.1,1883.0,5.64107242]
[1741917624569,1.06228,1883.1,1883.0,5.15873404]
[1741917624769,1.06228,1883.1,1883.0,4.5645]
[1741917625667,1.43006601,1883.2,1883.0,4.5645]
[1741917625870,2.49227601,1883.2,1883.1,1.3017]
[1741917629881,2.49227601,1883.2,1883.1,1.9625854]
[1741917630574,0.00796601,1883.2,1883.1,1.9625854]
[1741917630882,1.06216,1883.3,1883.1,1.9625854]
[1741917631073,2.40873,1883.4,1883.2,7.03441]
[1741917631275,2.40873,1883.4,1883.3,1.4051]
[1741917631480,1.06213,1883.4,1883.3,1.4051]
[1741917632272,0.00796601,1883.5,1883.3,1.4051]
[1741917632585,0.00796601,1883.5,1883.4,4.2699]
[1741917632878,0.00796601,1883.5,1883.4,3.2078]
[1741917633280,0.00796601,1883.5,1883.4,4.6509]
[1741917633577,1.07000601,1883.5,1883.4,4.6509]
[1741917634082,0.00796601,1883.5,1883.4,4.6509]
[1741917634674,1.07000601,1883.5,1883.4,3.2078]
[1741917634877,1.06212,1883.4,1883.3,3.2078]
[1741917635078,1.06212,1883.4,1883.3,4.6482]
[1741917635982,2.65538,1883.4,1883.1,3.2078]
[1741917636280,1.06221,1883.2,1883.1,3.2078]
[1741917637378,1.06221,1883.2,1882.9,0.00796601]
[1741917637379,1.06232,1883.0,1882.9,0.00796601]
[1741917637579,1.06255,1882.6,1882.5,3.2078]
[1741917637772,2.381,1882.7,1882.3,3.2078]
[1741917638090,0.6926,1882.5,1882.3,3.2078]
[1741917638301,1.06266,1882.4,1882.3,3.2078]
[1741917638475,0.7155,1882.6,1882.4,1.06263]
[1741917638674,1.77806,1882.6,1882.5,1.3467]
[1741917639886,1.06266,1882.4,1882.3,3.2078]
[1741917640086,1.06263,1882.5,1882.3,4.5545]
[1741917640285,0.7155,1882.6,1882.4,1.3467]
[1741917640488,1.0626,1882.5,1882.4,1.3467]
[1741917640782,1.0626,1882.5,1882.4,4.5545]
[1741917640983,1.0626,1882.5,1882.4,5.21472851]
[1741917641786,0.70056601,1882.7,1882.4,5.21472851]
[1741917641984,1.76305601,1882.7,1882.6,3.2078]
[1741917642579,1.76305601,1882.7,1882.6,3.8891]
[1741917642975,1.07045601,1882.7,1882.6,3.8891]
[1741917643185,1.07045601,1882.7,1882.6,5.8748]
[1741917643385,0.00796601,1882.7,1882.6,7.59761348]
[1741917643786,1.07045601,1882.7,1882.6,6.53506348]
[1741917644291,0.00796601,1882.7,1882.6,6.53506348]
[1741917644481,1.07045601,1882.7,1882.6,6.53506348]
[1741917644889,1.07045601,1882.7,1882.6,5.16946348]
[1741917645185,1.07045601,1882.7,1882.6,3.86806348]
[1741917645393,1.07045601,1882.7,1882.6,3.2078]
[1741917645691,1.07045601,1882.7,1882.6,4.27035]
[1741917645889,0.00796601,1882.7,1882.6,5.55551855]
[1741917646391,1.72104,1883.0,1882.6,4.97368899]
[1741917646595,1.72104,1883.0,1882.9,3.2078]
[1741917646790,0.6587,1883.0,1882.9,3.2078]
[1741917647084,1.06232,1883.1,1882.9,3.2078]
[1741917647292,1.06232,1883.1,1883.0,1.4387]
[1741917647586,0.7165,1883.2,1882.9,3.2078]
[1741917647587,1.06232,1883.0,1882.9,3.2078]
[1741917648386,3.44332,1883.0,1882.9,3.2078]
[1741917648595,2.381,1883.0,1882.7,3.2078]
[1741917648792,1.06243,1882.8,1882.7,3.2078]
[1741917649988,2.40333,1882.8,1882.7,3.2078]
[1741917654496,1.06255,1882.6,1882.5,3.2078]
[1741917654892,1.06255,1882.6,1882.5,3.86906941]
[1741917655093,1.71615,1882.6,1882.5,3.86906941]
[1741917655293,1.06266,1882.4,1882.3,3.2078]
[1741917655995,2.50376,1882.4,1882.3,3.2078]
[1741917656399,2.50376,1882.4,1882.3,4.5731]
[1741917656595,2.50376,1882.4,1882.3,5.2542]
[1741917658097,1.4411,1882.4,1882.3,5.2542]
[1741917658289,1.4411,1882.4,1882.3,6.31692]
[1741917658493,2.50376,1882.4,1882.3,5.2542]
[1741917659495,2.50376,1882.4,1882.3,4.5731]
[1741917660486,1.4411,1882.4,1882.3,4.5731]
[1741917660801,1.06257,1882.6,1882.4,1.06263]
[1741917661092,2.41817,1882.6,1882.5,5.3056]
[1741917664289,2.41817,1882.6,1882.5,4.6264]
[1741917667296,2.41817,1882.6,1882.5,3.2078]
[1741917667899,2.41817,1882.6,1882.5,3.86605102]
[1741917668700,2.41817,1882.6,1882.5,0.65825102]
[1741917669498,2.41817,1882.6,1882.3,3.2078]
[1741917669499,1.06266,1882.4,1882.3,3.2078]
[1741917669900,4.5191,1882.5,1882.3,3.82305505]
[1741917670197,2.48506,1882.4,1882.3,3.86607081]
[1741917670399,2.48506,1882.4,1882.3,4.48130112]
[1741917670598,1.4224,1882.4,1882.3,4.48130112]
[1741917670796,1.4224,1882.4,1882.3,5.18997271]
[1741917671100,1.4224,1882.4,1882.3,7.71963076]
[1741917671601,2.381,1882.5,1882.4,1.06266]
[1741917671803,4.8448,1882.5,1882.4,1.7720982]
[1741917672096,1.4166,1882.7,1882.4,2.43036901]
[1741917672302,2.46377,1882.6,1882.5,1.6778019]
[1741917672505,2.46377,1882.6,1882.5,5.54387271]
[1741917672799,2.46377,1882.6,1882.5,5.54370413]
[1741917673403,2.46377,1882.6,1882.5,4.48110413]
[1741917673602,2.46377,1882.6,1882.5,3.86607081]
[1741917673899,3.14777,1882.6,1882.5,3.86607081]
[1741917674301,3.14777,1882.6,1882.5,4.48104634]
[1741917674498,2.381,1882.8,1882.5,4.48104634]
[1741917674499,1.06248,1882.8,1882.5,4.48104634]
[1741917674699,1.06248,1882.8,1882.7,3.2078]
[1741917674700,2.44748,1882.8,1882.7,3.2078]
[1741917674899,1.06255,1882.6,1882.5,3.86607081]
[1741917675100,1.06255,1882.6,1882.5,4.48104754]
[1741917675506,3.11985,1882.6,1882.5,0.65827081]
[1741917675812,5.50085,1882.6,1882.5,0.65827081]
[1741917676102,4.4383,1882.6,1882.3,3.2078]
[1741917676303,1.06266,1882.4,1882.3,3.2078]
[1741917676494,1.06266,1882.4,1882.3,3.82317247]
[1741917676692,1.76156,1882.4,1882.3,3.82317247]
[1741917676892,1.76156,1882.4,1882.3,4.48156229]
[1741917677806,1.76156,1882.4,1882.3,3.86618982]
[1741917679001,1.76156,1882.4,1882.3,0.65838982]
[1741917679801,1.06272,1882.3,1882.2,0.00796601]
[1741917680007,2.44162,1882.3,1882.2,0.00796601]
[1741917680207,2.44162,1882.3,1882.2,0.66678557]
[1741917684696,2.44162,1882.3,1882.2,0.00796601]
[1741917685705,2.44162,1882.3,1882.2,0.66648671]
[1741917687897,2.44162,1882.3,1882.2,0.00796601]
[1741917688097,4.82262,1882.3,1882.2,0.00796601]
[1741917691108,1.06311,1881.6,1881.5,11.5948]
[1741917691404,1.06311,1881.6,1881.5,5.22590131]
[1741917691604,1.06311,1881.6,1881.5,4.53620131]
[1741917691802,1.3753,1881.7,1881.3,3.8687]
[1741917692001,1.3753,1881.7,1881.3,3.2078]
[1741917692002,1.06322,1881.4,1881.3,3.2078]
[1741917692203,1.06322,1881.4,1881.3,3.21576601]
[1741917692410,1.06322,1881.4,1881.3,0.00796601]
[1741917692604,1.06322,1881.4,1881.0,5.8967]
[1741917692605,5.1686,1881.4,1881.0,1.3149]
[1741917692905,1.06334,1881.2,1881.1,0.65798949]
[1741917693209,2.381,1881.2,1880.8,3.8687]
[1741917693401,1.06351,1880.9,1880.8,3.8687]
[1741917693601,1.06351,1880.9,1880.8,4.52593379]
[1741917694210,1.06347,1881.0,1880.8,4.52593379]
[1741917694503,1.3014,1881.1,1880.8,4.52593379]
[1741917694708,3.44437,1881.2,1881.0,3.2078]
[1741917694898,4.74577,1881.2,1881.1,0.6678]
[1741917695297,2.36477,1881.2,1881.1,0.6678]
[1741917695508,1.06339,1881.1,1881.0,3.2078]
[1741917695704,2.38519,1881.1,1881.0,3.2078]
[1741917697508,4.76619,1881.1,1881.0,3.2078]
[1741917698406,2.382,1881.4,1881.1,1.06339]
[1741917698599,1.06329,1881.3,1881.2,0.6774]
[1741917699011,2.37389,1881.3,1881.2,0.6774]
[1741917699211,1.06339,1881.1,1881.0,3.2078]
[1741917699409,1.3106,1881.2,1881.0,4.54038308]
[1741917699610,1.06339,1881.1,1881.0,3.8852]
[1741917700520,2.37397,1881.2,1881.0,4.94863]
[1741917701013,1.06339,1881.1,1881.0,3.8852]
[1741917701213,2.37399,1881.1,1881.0,3.8852]
[1741917702311,2.37399,1881.1,1881.0,3.2078]
[1741917703408,4.75599,1881.1,1881.0,3.2078]
[1741917703815,4.75599,1881.1,1881.0,4.6006]
[1741917704314,4.75599,1881.1,1881.0,3.2078]
[1741917707119,2.37399,1881.1,1881.0,3.2078]
[1741917708115,1.06351,1880.9,1880.8,4.5805]
[1741917708509,1.3826,1881.0,1880.8,4.5805]
[1741917708715,1.06351,1880.9,1880.8,4.5805]
[1741917710114,1.06351,1880.9,1880.8,5.8897]
[1741917711118,2.382,1881.2,1880.8,5.8897]
[1741917711319,4.80127,1881.2,1881.1,3.2078]
[1741917712617,1.06339,1881.1,1881.0,1.3127]
[1741917712820,3.08789,1881.1,1881.0,1.3127]
[1741917713419,2.41929,1881.1,1881.0,1.3127]
[1741917713621,1.3559,1881.1,1881.0,1.3127]
[1741917713813,2.382,1881.6,1881.3,1.06326]
[1741917714114,0.00796601,1881.7,1881.4,5.3054]
[1741917714306,0.00796601,1881.7,1881.5,1.3835]
[1741917714506,0.00796601,1881.7,1881.5,2.0849]
[1741917714705,1.06311,1881.6,1881.5,2.0849]
[1741917714915,1.06311,1881.6,1881.5,0.7014]
[1741917715113,0.00796601,1881.7,1881.5,1.76457]
[1741917715319,0.00796601,1881.7,1881.6,3.2078]
[1741917715513,1.40266601,1881.7,1881.6,3.2078]
[1741917715906,2.382,1882.3,1881.6,14.0948]
[1741917716106,1.06283,1882.1,1882.0,3.2078]
[1741917716917,2.0914,1882.2,1882.0,3.2078]
[1741917717217,0.00796601,1882.2,1882.1,1.06283]
[1741917717418,0.00796601,1882.2,1882.1,1.74683]
[1741917717813,0.00796601,1882.2,1882.1,2.40212861]
[1741917718217,0.00796601,1882.2,1882.1,1.74683]
[1741917719318,0.00796601,1882.2,1882.1,2.41893]
[1741917719711,0.00796601,1882.2,1882.1,10.80593]
[1741917719912,0.00796601,1882.2,1882.1,11.46094861]
[1741917720117,1.3967,1882.5,1882.3,1.06269]
[1741917720320,2.4593,1882.5,1882.4,3.2078]
[1741917720515,1.3967,1882.5,1882.4,3.2078]
[1741917721018,2.381,1883.0,1882.4,3.2078]
[1741917721217,1.3128,1882.9,1882.8,3.2078]
[1741917721514,1.32076601,1882.9,1882.8,3.2078]
[1741917721716,2.38314601,1882.9,1882.8,3.2078]
[1741917721912,1.32076601,1882.9,1882.8,4.27023]
[1741917722620,0.00796601,1882.9,1882.8,4.27023]
[1741917723622,1.44046601,1882.9,1882.8,4.27023]
[1741917723816,0.00796601,1882.9,1882.8,4.27023]
[1741917724017,3.44317,1883.3,1883.1,1.06224]
[1741917724219,4.87567,1883.3,1883.1,4.27004]
[1741917724426,4.87567,1883.3,1883.1,3.2078]
[1741917724730,4.87567,1883.3,1883.1,4.27001]
[1741917724916,2.49467,1883.3,1883.1,4.27001]
[1741917725110,2.49467,1883.3,1883.1,3.2078]
[1741917725515,1.06221,1883.2,1883.1,3.2078]
[1741917725718,2.49471,1883.2,1883.1,3.2078]
[1741917728222,1.4325,1883.2,1883.0,0.00796601]
[1741917728421,1.06226,1883.1,1883.0,0.00796601]
[1741917729229,2.42956,1883.1,1883.0,0.00796601]
[1741917729428,1.3673,1883.1,1883.0,1.07028601]
[1741917730121,1.3673,1883.1,1883.0,2.43558601]
[1741917730530,0.00796601,1883.4,1883.0,1.37326601]
[1741917730723,2.45730601,1883.4,1883.3,3.2078]
[1741917730918,2.45730601,1883.4,1883.3,4.5731]
[1741917731225,1.06221,1883.2,1883.1,3.9237]
[1741917732630,1.06221,1883.2,1883.1,5.3108]
[1741917734127,2.44939,1883.3,1883.1,6.37305]
[1741917734322,2.44935,1883.3,1883.2,1.3871]
[1741917734529,1.06215,1883.3,1883.2,1.3871]
[1741917735336,1.06221,1883.2,1883.1,3.2078]
[1741917735635,1.75201,1883.2,1883.1,3.2078]
[1741917735930,0.00796601,1883.4,1883.1,3.2078]
[1741917736132,1.0622,1883.3,1883.1,2.1075]
[1741917736333,1.0622,1883.3,1883.2,4.6155]
[1741917736530,0.00796601,1883.4,1883.2,4.6155]
[1741917736728,0.00796601,1883.4,1883.3,1.4077]
[1741917736923,1.07006601,1883.4,1883.3,1.4077]
[1741917737128,1.07006601,1883.4,1883.3,2.46985]
[1741917737331,0.00796601,1883.4,1883.3,2.46985]
[1741917737933,1.3702,1883.9,1883.3,4.96985]
[1741917738141,3.2078,1884.2,1883.7,3.2078]
[1741917738142,2.379,1884.2,1883.7,3.2078]
[1741917738343,1.06176,1884.0,1883.9,3.2078]
[1741917738637,1.06181,1883.9,1883.8,3.2078]
[1741917738835,2.43201,1883.9,1883.8,3.2078]
[1741917739031,1.06193,1883.7,1883.6,3.2078]